bitfinex/quotes_SOLUSD_20260304
["timestamp","ask_amount","ask_price","bid_price","bid_amount"]
[1772600851209,4.11585367,85.295,85.27,1.9044479]
[1772600851433,4.11585367,85.295,85.271,11.72731643]
[1772600852624,4.11585367,85.302,85.28,1.9044479]
[1772600853626,11.72246581,85.307,85.29,1.9044479]
[1772600853807,15.83831948,85.307,85.29,1.9044479]
[1772600854003,0.2,85.32,85.28,1.9044479]
[1772600854004,4.11585367,85.306,85.28,1.9044479]
[1772600854519,4.11585367,85.306,85.29,1.9044479]
[1772600854907,4.11585367,85.306,85.261,11.72869189]
[1772600854908,4.11585367,85.306,85.27,1.9044479]
[1772600855926,11.72264228,85.305,85.27,1.9044479]
[1772600856111,4.11585367,85.304,85.27,1.9044479]
[1772600856617,4.11585367,85.289,85.25,1.9044479]
[1772600857201,4.11585367,85.289,85.26,1.9044479]
[1772600858119,4.11585367,85.289,85.261,11.72869189]
[1772600858720,4.11585367,85.3,85.27,1.9044479]
[1772600858908,4.11585367,85.3,85.28,1.9044479]
[1772600859709,4.11585367,85.3,85.261,41.05042163]
[1772600859710,0.2,85.32,85.262,0.28432314]
[1772600859923,4.11585367,85.319,85.31,1.9044479]
[1772600860129,29.29355463,85.344,85.31,1.9044479]
[1772600860130,4.11585367,85.334,85.311,11.72181781]
[1772600860814,4.11585367,85.334,85.32,5.65308823]
[1772600861017,4.11585367,85.349,85.32,5.65308823]
[1772600861226,4.11585367,85.349,85.33,5.65308823]
[1772600862426,4.11585367,85.347,85.32,5.65308823]
[1772600862626,4.11585367,85.347,85.32,5.65215058]
[1772600863632,0.2,85.35,85.33,5.65215058]
[1772600864137,0.2,85.35,85.34,5.65215058]
[1772600864431,1e-08,85.35,85.34,5.65215058]
[1772600865234,0.2,85.37,85.34,5.65215058]
[1772600865416,0.2,85.37,85.35,5.65215058]
[1772600865816,0.2,85.37,85.36,5.65215058]
[1772600866016,0.2,85.37,85.35,5.65215058]
[1772600866317,0.2,85.37,85.318,58.60425674]
[1772600866318,0.2,85.37,85.36,5.65215058]
[1772600866518,1e-08,85.37,85.36,5.65215058]
[1772600868239,4.11585368,85.37,85.351,11.71632435]
[1772600868418,1e-08,85.37,85.36,5.65215058]
[1772600869326,0.2,85.4,85.36,5.65215058]
[1772600869528,4.11585367,85.399,85.38,5.65215058]
[1772600870037,0.2,85.41,85.39,5.65215058]
[1772600870529,0.2,85.41,85.391,11.71083603]
[1772600870717,4.11585367,85.409,85.391,11.71083603]
[1772600870914,4.11585367,85.409,85.39,5.65215058]
[1772600871118,0.2,85.41,85.39,11.71093669]
[1772600871338,0.2,85.41,85.4,5.65215058]
[1772600872236,0.2,85.41,85.39,5.65215058]
[1772600872824,4.11585367,85.408,85.38,5.65215058]
[1772600873234,4.11585367,85.408,85.39,5.65215058]
[1772600874535,4.11585367,85.408,85.38,5.65215058]
[1772600874736,4.11585367,85.406,85.38,5.65215058]
[1772600875343,4.11585367,85.406,85.39,5.65215058]
[1772600875845,4.11585367,85.406,85.38,5.65215058]
[1772600877339,0.2,85.41,85.362,29.28703638]
[1772600877524,4.11585367,85.417,85.4,5.65215058]
[1772600877720,4.11585367,85.425,85.41,5.65215058]
[1772600878339,4.11585367,85.425,85.4,5.65215058]
[1772600879126,4.11585367,85.425,85.364,3.69383402]
[1772600879335,4.11585367,85.417,85.381,11.71220763]
[1772600879631,4.11585367,85.417,85.4,5.65215058]
[1772600879850,4.11585367,85.424,85.4,5.65215058]
[1772600880522,4.11585367,85.424,85.39,5.65215058]
[1772600880719,4.11585367,85.424,85.381,40.99272671]
[1772600880720,4.11585367,85.424,85.4,5.65215058]
[1772600881728,4.11585367,85.422,85.4,5.65215058]
[1772600882543,4.11585367,85.422,85.39,5.65215058]
[1772600882729,4.11585367,85.419,85.39,5.65215058]
[1772600883249,4.11585367,85.419,85.353,99.58642343]
[1772600883250,4.11585367,85.419,85.38,5.65215058]
[1772600883943,4.11585367,85.417,85.39,5.65215058]
[1772600884627,4.11585367,85.417,85.359,0.28432314]
[1772600884840,4.11585367,85.417,85.38,5.65215058]
[1772600885350,40.97497013,85.418,85.36,5.65215058]
[1772600885351,4.11585367,85.389,85.36,5.65215058]
[1772600885746,5.65215058,85.4,85.36,5.65215058]
[1772600885943,5.65215058,85.4,85.334,3.69383402]
[1772600885944,4.11585367,85.398,85.37,17.36582662]
[1772600886250,4.11585367,85.398,85.37,5.65215058]
[1772600886946,4.11585367,85.398,85.36,5.65215058]
[1772600887133,4.11585367,85.379,85.35,5.65215058]
[1772600888649,4.11585367,85.396,85.36,5.65215058]
[1772600888847,4.11585367,85.396,85.37,5.65215058]
[1772600889750,4.11585367,85.396,85.36,5.65215058]
[1772600890833,4.11585367,85.394,85.37,5.65215058]
[1772600891033,11.71028748,85.395,85.35,5.65215058]
[1772600891034,5.65215058,85.38,85.35,5.65215058]
[1772600891234,4.11585367,85.369,85.34,5.65215058]
[1772600891756,4.11585367,85.369,85.33,5.65215058]
[1772600892055,4.11585367,85.369,85.33,17.37135836]
[1772600892233,4.11585367,85.369,85.34,5.65215058]
[1772600892429,4.11585367,85.369,85.33,17.37135836]
[1772600892634,4.11585367,85.369,85.33,5.65215058]
[1772600892837,4.11585367,85.367,85.33,5.65215058]
[1772600893157,4.11585367,85.367,85.34,5.65215058]
[1772600894950,4.11585367,85.365,85.34,5.65215058]
[1772600896357,4.11585367,85.359,85.34,5.65215058]
[1772600897044,4.11585367,85.359,85.341,11.71769723]
[1772600897243,4.11585367,85.37,85.341,11.71769723]
[1772600897461,4.11585367,85.37,85.34,5.65215058]
[1772600897650,4.11585367,85.37,85.336,11.71831713]
[1772600897651,4.11585367,85.369,85.33,5.65215058]
[1772600897851,4.11585367,85.359,85.329,17.04967882]
[1772600899042,4.11585367,85.357,85.33,11.71920778]
[1772600899243,4.11585367,85.357,85.33,17.37135836]
[1772600899649,4.11585367,85.357,85.33,5.65215058]
[1772600899859,4.11585367,85.357,85.329,17.04967882]
[1772600900262,4.11585367,85.357,85.33,5.65215058]
[1772600900655,4.11585367,85.357,85.33,17.37135836]
[1772600901064,4.11585367,85.357,85.33,5.65215058]
[1772600901256,15.91648869,85.35,85.33,5.65215058]
[1772600901441,4.2,85.35,85.33,5.65215058]
[1772600901960,8.31585367,85.35,85.33,5.65215058]
[1772600902468,1e-08,85.35,85.33,13.6179836]
[1772600902653,1e-08,85.35,85.329,17.04967882]
[1772600902854,11.71648127,85.35,85.329,17.04967882]
[1772600903852,11.71648127,85.35,85.32,1.89877582]
[1772600903853,1.89877582,85.35,85.31,1.89877582]
[1772600904170,1.89877582,85.34,85.31,1.89877582]
[1772600904662,3.79112749,85.339,85.311,3.94450532]
[1772600905445,1.89877582,85.35,85.311,3.94450532]
[1772600905654,3.79112749,85.358,85.33,5.84328114]
[1772600905865,3.79112749,85.356,85.331,3.94450532]
[1772600906066,3.79112749,85.356,85.321,3.94450532]
[1772600906249,3.79112749,85.349,85.313,3.94450532]
[1772600906450,3.79112749,85.349,85.303,3.94450532]
[1772600906765,3.79112749,85.349,85.3,0.1]
[1772600906766,3.79112749,85.319,85.3,0.1]
[1772600908067,3.79112749,85.317,85.3,0.1]
[1772600909461,3.79112749,85.348,85.311,3.94450532]
[1772600909861,3.79112749,85.348,85.32,9.59773807]
[1772600910051,3.79112749,85.348,85.321,3.94450532]
[1772600911517,3.79112749,85.358,85.323,3.94450532]
[1772600911768,3.79112749,85.349,85.316,3.94450532]
[1772600913872,58.5648657,85.376,85.3,0.1]
[1772600913873,3.79112749,85.339,85.3,0.1]
[1772600914078,3.79112749,85.339,85.301,3.94450532]
[1772600914470,3.79112749,85.339,85.31,5.65323275]
[1772600915069,3.79112749,85.337,85.31,5.65323275]
[1772600915886,3.79112749,85.337,85.311,11.72181781]
[1772600916066,3.79112749,85.337,85.312,3.94450532]
[1772600916260,3.79112749,85.337,85.32,5.65323275]
[1772600916486,11.71810916,85.338,85.32,5.65323275]
[1772600917963,3.79112749,85.343,85.312,3.94450532]
[1772600919276,3.79112749,85.339,85.3,5.75323275]
[1772600919458,3.79112749,85.339,85.31,5.65323275]
[1772600919660,3.79112749,85.339,85.311,3.94450532]
[1772600919979,15.50841282,85.344,85.321,3.94450532]
[1772600920368,3.79112749,85.358,85.321,3.94450532]
[1772600922087,11.71550077,85.357,85.333,3.94450532]
[1772600922384,3.79112749,85.366,85.341,3.94450532]
[1772600922759,3.79112749,85.366,85.34,5.64899411]
[1772600922960,3.79112749,85.366,85.341,3.94450532]
[1772600923166,15.50498146,85.369,85.341,3.94450532]
[1772600923366,3.79112749,85.368,85.341,3.94450532]
[1772600924184,11.71412841,85.367,85.343,3.94450532]
[1772600924576,3.79112749,85.366,85.34,5.64899411]
[1772600924887,3.79112749,85.366,85.336,3.94450532]
[1772600925577,3.79112749,85.366,85.336,11.71829009]
[1772600925784,3.79112749,85.366,85.331,15.66349706]
[1772600926508,3.79112749,85.364,85.332,3.94450532]
[1772600926783,11.71300275,85.376,85.351,3.94450532]
[1772600926989,6.12041396,85.392,85.371,3.94450532]
[1772600927187,3.79112749,85.399,85.371,3.94450532]
[1772600927484,3.79112749,85.389,85.36,1.89846731]
[1772600928489,3.78425337,85.387,85.36,1.89846731]
[1772600930684,3.78425337,85.387,85.361,3.83817612]
[1772600930893,3.78425337,85.398,85.371,3.83817612]
[1772600931875,3.78425337,85.398,85.35,1.89846731]
[1772600931876,3.78425337,85.398,85.35,3.83817612]
[1772600932075,3.78425337,85.398,85.361,3.83817612]
[1772600932585,3.78425337,85.409,85.38,1.89846731]
[1772600932779,3.78425337,85.409,85.371,3.83817612]
[1772600933489,3.78425337,85.399,85.36,1.89846731]
[1772600933692,3.78425337,85.399,85.361,3.83817612]
[1772600934010,3.78425337,85.399,85.37,1.89846731]
[1772600934489,3.78425337,85.399,85.361,3.83817612]
[1772600934893,3.78425337,85.397,85.362,3.83817612]
[1772600935689,3.78425337,85.397,85.36,1.89846731]
[1772600935988,3.78425337,85.397,85.36,5.73664343]
[1772600936493,3.78425337,85.389,85.352,3.83817612]
[1772600937479,3.78425337,85.379,85.345,3.83817612]
[1772600937681,3.78425337,85.414,85.381,3.83817612]
[1772600937980,3.78425337,85.414,85.39,1.89846731]
[1772600938170,3.78425337,85.414,85.381,3.83817612]
[1772600938376,15.49193595,85.414,85.381,3.83817612]
[1772600938572,3.78425337,85.414,85.39,5.73664343]
[1772600938773,3.78425337,85.429,85.399,3.83817612]
[1772600939770,3.78425337,85.428,85.391,3.83817612]
[1772600940876,0.2,85.43,85.41,5.64219085]
[1772600941282,0.2,85.43,85.411,3.83817612]
[1772600941593,3.78425337,85.443,85.42,5.64219085]
[1772600942387,3.78425337,85.449,85.421,3.83817612]
[1772600943296,3.78425337,85.449,85.41,9.48036697]
[1772600943599,3.78425337,85.449,85.411,3.83817612]
[1772600943897,3.78425337,85.449,85.42,5.64219085]
[1772600944090,0.2,85.46,85.44,9.48036697]
[1772600944587,3.98425337,85.46,85.422,3.83817612]
[1772600944788,3.78425337,85.458,85.44,5.64219085]
[1772600944991,0.2,85.46,85.44,5.64219085]
[1772600945198,0.2,85.47,85.451,3.83817612]
[1772600945401,0.2,85.47,85.46,5.64219085]
[1772600945697,0.2,85.47,85.451,3.83817612]
[1772600946402,0.2,85.47,85.45,5.64219085]
[1772600946794,3.78425337,85.469,85.45,5.64219085]
[1772600951710,3.78425337,85.467,85.44,5.64219085]
[1772600951900,3.78425337,85.467,85.441,3.83817612]
[1772600952608,0.2,85.47,85.45,5.64219085]
[1772600952911,0.2,85.47,85.451,3.83817612]
[1772600953308,0.2,85.47,85.46,5.64219085]
[1772600955608,0.2,85.47,85.453,3.83817612]
[1772600955811,0.2,85.47,85.45,5.64219085]
[1772600956114,0.2,85.47,85.46,5.64219085]
[1772600956497,0.2,85.48,85.461,3.83817612]
[1772600956701,0.2,85.48,85.46,5.64219085]
[1772600956702,0.1,85.49,85.471,3.83817612]
[1772600957506,0.1,85.49,85.47,5.64219085]
[1772600958504,0.1,85.49,85.463,3.83817612]
[1772600958711,3.98765636,85.49,85.47,5.64219085]
[1772600960123,11.97314639,85.5,85.48,5.64219085]
[1772600960124,4.17430634,85.5,85.48,5.64219085]
[1772600960622,0.1,85.5,85.49,5.64219085]
[1772600960806,0.1,85.5,85.487,3.84056597]
[1772600961206,0.1,85.5,85.48,5.64219085]
[1772600961207,0.1,85.5,85.481,3.84056597]
[1772600961526,4.17430634,85.5,85.48,5.64219085]
[1772600962139,0.1,85.5,85.49,5.64219085]
[1772600962423,0.1,85.5,85.47,5.64219085]
[1772600962424,4.07430634,85.499,85.47,5.64219085]
[1772600962629,4.07430634,85.499,85.47,1.892347]
[1772600963122,4.07430634,85.499,85.461,3.84056597]
[1772600963314,4.07430634,85.499,85.47,1.892347]
[1772600963516,4.07430634,85.499,85.461,3.84056597]
[1772600964608,4.07430634,85.497,85.461,3.84056597]
[1772600965125,4.07430634,85.489,85.452,11.70247624]
[1772600965719,4.07430634,85.489,85.451,3.84056597]
[1772600965924,4.07430634,85.489,85.452,11.70247624]
[1772600966226,4.07430634,85.489,85.45,1.892347]
[1772600966432,4.07430634,85.479,85.445,15.5439476]
[1772600966628,4.07430634,85.479,85.446,3.84056597]
[1772600966926,11.69741136,85.489,85.45,1.892347]
[1772600967704,11.69741136,85.489,85.451,3.84056597]
[1772600968105,11.69741136,85.489,85.46,1.892347]
[1772600968523,11.69741136,85.489,85.459,3.84056597]
[1772600969037,4.07430634,85.486,85.459,15.54205703]
[1772600969532,4.07430634,85.486,85.46,3.84056597]
[1772600969929,4.07430634,85.486,85.454,11.702094]
[1772600970127,4.07430634,85.486,85.455,3.84056597]
[1772600970842,4.07430634,85.479,85.45,1.892347]
[1772600971136,4.07430634,85.477,85.451,3.84056597]
[1772600972221,4.07430634,85.477,85.45,1.892347]
[1772600973140,4.07430634,85.475,85.445,3.84056597]
[1772600973344,4.07430634,85.475,85.45,1.892347]
[1772600973833,4.07430634,85.475,85.451,3.84056597]
[1772600974345,11.69919041,85.476,85.451,3.84056597]
[1772600975441,40.94716645,85.476,85.451,3.84056597]
[1772600975642,40.94716645,85.476,85.441,3.84056597]
[1772600976339,4.07430634,85.475,85.441,3.84056597]
[1772600977217,4.07430634,85.473,85.45,1.892347]
[1772600977737,4.07430634,85.473,85.451,3.84056597]
[1772600978636,4.07430634,85.473,85.415,61.2]
[1772600978637,4.07430634,85.473,85.44,5.73291297]
[1772600978842,4.07430634,85.473,85.44,3.84056597]
[1772600979447,4.07430634,85.471,85.44,5.73291297]
[1772600979643,40.94908273,85.472,85.413,3.84056597]
[1772600979644,4.07430634,85.459,85.413,3.84056597]
[1772600979942,4.07430634,85.459,85.421,3.84056597]
[1772600980145,4.07430634,85.449,85.411,3.84056597]
[1772600981248,4.07430634,85.449,85.421,3.84056597]
[1772600981451,11.70302406,85.448,85.423,3.84056597]
[1772600981625,11.70302406,85.448,85.43,1.892347]
[1772600981943,11.70302406,85.448,85.427,3.84056597]
[1772600983542,4.07430634,85.45,85.427,3.84056597]
[1772600984445,4.07430634,85.449,85.421,3.84056597]
[1772600985149,4.07430634,85.449,85.41,1.89488825]
[1772600985345,40.95531189,85.459,85.405,3.84056597]
[1772600985346,4.07430634,85.439,85.405,3.84056597]
[1772600986056,4.07430634,85.437,85.405,3.84056597]
[1772600986243,4.07430634,85.437,85.411,3.84056597]
[1772600988252,3.77029928,85.435,85.411,3.84056597]
[1772600988636,1.89488825,85.42,85.368,11.71391152]
[1772600988839,3.77029928,85.419,85.38,1.89488825]
[1772600990653,1.89488825,85.42,85.381,3.83028804]
[1772600990654,40.97497013,85.418,85.381,3.83028804]
[1772600990854,3.77029928,85.417,85.381,3.83028804]
[1772600991964,3.77029928,85.399,85.37,2.09488825]
[1772600993056,3.77029928,85.397,85.37,0.2]
[1772600993442,3.77029928,85.389,85.36,1.89488825]
[1772600993844,3.77029928,85.397,85.361,3.83028804]
[1772600994256,11.7098761,85.398,85.352,3.83028804]
[1772600994257,3.77029928,85.389,85.352,3.83028804]
[1772600994465,3.77029928,85.379,85.345,3.83028804]
[1772600994760,3.77029928,85.379,85.35,5.72517629]
[1772600995058,3.77029928,85.379,85.351,3.83028804]
[1772600995261,11.71177069,85.385,85.361,3.83028804]
[1772600995563,3.77029928,85.4,85.371,3.83028804]
[1772600995761,11.70975048,85.399,85.371,3.83028804]
[1772600996062,3.77029928,85.398,85.371,3.83028804]
[1772600997565,11.71001323,85.397,85.373,3.83028804]
[1772600998565,11.70938965,85.402,85.373,3.83028804]
[1772600998866,11.70844064,85.409,85.381,3.83028804]
[1772600999066,58.52316483,85.437,85.38,1.89488825]
[1772600999067,3.77029928,85.429,85.401,3.83028804]
[1772600999553,3.77029928,85.429,85.403,3.83028804]
[1772600999743,11.70576391,85.428,85.403,3.83028804]
[1772601000065,3.77029928,85.429,85.403,3.83028804]
[1772601000264,11.70343495,85.445,85.411,3.83028804]
[1772601000464,11.70343495,85.445,85.421,3.83028804]
[1772601000863,11.70343495,85.445,85.41,1.89488825]
[1772601000864,3.77029928,85.455,85.431,3.83028804]
[1772601001165,3.77029928,85.439,85.403,3.83028804]
[1772601001746,3.77029928,85.437,85.403,3.83028804]
[1772601003256,3.77029928,85.437,85.4,1.89488825]
[1772601003461,40.96537839,85.438,85.39,1.89488825]
[1772601003462,3.77029928,85.429,85.39,1.89488825]
[1772601003654,3.77029928,85.419,85.387,3.83028804]
[1772601003852,3.77029928,85.417,85.38,5.72517629]
[1772601004064,3.77029928,85.417,85.381,3.83028804]
[1772601005766,3.77029928,85.409,85.375,3.83028804]
[1772601005970,3.77029928,85.409,85.38,1.89488825]
[1772601006356,15.47880433,85.408,85.381,3.83028804]
[1772601006957,15.47880433,85.408,85.381,15.54249567]
[1772601007166,15.47880433,85.408,85.382,3.83028804]
[1772601007359,3.77029928,85.408,85.382,3.83028804]
[1772601008250,3.77029928,85.423,85.391,3.83028804]
[1772601008464,11.70658612,85.422,85.393,3.83028804]
[1772601008650,3.77029928,85.421,85.393,3.83028804]
[1772601010380,3.77029928,85.422,85.393,3.83028804]
[1772601010680,3.77029928,85.422,85.401,3.83028804]
[1772601010875,15.47592617,85.429,85.401,3.83028804]
[1772601011880,15.47592617,85.429,85.379,29.28113614]
[1772601011881,3.77029928,85.428,85.391,3.83028804]
[1772601013176,3.77029928,85.428,85.401,3.83028804]
[1772601014178,15.47618307,85.428,85.402,3.83028804]
[1772601014759,11.70588379,85.428,85.402,3.83028804]
[1772601015475,3.77029928,85.442,85.41,1.89488825]
[1772601015682,3.77029928,85.448,85.421,3.83028804]
[1772601016070,3.77029928,85.446,85.415,3.83028804]
[1772601016761,3.77029928,85.446,85.416,3.83028804]
[1772601017684,3.77029928,85.446,85.421,3.83028804]
[1772601017884,3.77029928,85.446,85.41,1.89488825]
[1772601018281,4.21411155,85.444,85.41,1.89488825]
[1772601018580,4.21411155,85.444,85.42,1.89488825]
[1772601019785,4.21411155,85.444,85.42,13.60167437]
[1772601020086,4.21411155,85.444,85.42,14.50318899]
[1772601020388,1.89488825,85.47,85.431,0.91030195]
[1772601020389,4.13621198,85.461,85.431,0.91030195]
[1772601020776,11.70028548,85.468,85.441,0.91030195]
[1772601020980,4.13621198,85.467,85.45,1.89488825]
[1772601021179,4.13621198,85.467,85.441,0.91030195]
[1772601021384,4.13621198,85.459,85.421,0.91902364]
[1772601021593,11.70165461,85.458,85.422,11.70658612]
[1772601021774,4.13621198,85.457,85.43,1.89488825]
[1772601024391,4.13621198,85.457,85.422,11.70658612]
[1772601024392,4.13621198,85.455,85.42,1.89488825]
[1772601024691,4.13621198,85.455,85.42,2.83947819]
[1772601024877,4.13621198,85.455,85.421,0.94458994]
[1772601025073,4.13621198,85.455,85.431,0.95293255]
[1772601025284,11.70138302,85.46,85.431,0.95293255]
[1772601025481,4.13621198,85.459,85.431,0.95293255]
[1772601026083,4.13621198,85.459,85.44,1.89488825]
[1772601026284,11.70083889,85.464,85.441,0.96116796]
[1772601027194,15.83705087,85.464,85.441,0.96116796]
[1772601027588,4.13621198,85.463,85.44,1.89488825]
[1772601027782,4.13621198,85.463,85.431,0.96930307]
[1772601027988,4.13621198,85.459,85.432,0.96930307]
[1772601028390,4.13621198,85.459,85.44,1.89488825]
[1772601028592,4.13621198,85.457,85.44,1.89488825]
[1772601030902,4.13621198,85.459,85.44,1.89488825]
[1772601031781,11.70151768,85.459,85.44,1.89488825]
[1772601031981,4.13621198,85.458,85.44,1.89488825]
[1772601032808,15.83800352,85.457,85.44,1.89488825]
[1772601032984,4.13621198,85.456,85.44,1.89488825]
[1772601033502,4.13621198,85.456,85.413,1.0164183]
[1772601033702,4.13621198,85.456,85.431,1.0164183]
[1772601034687,4.13621198,85.464,85.44,1.89488825]
[1772601036918,4.13621198,85.479,85.451,1.03864872]
[1772601037892,4.13621198,85.478,85.451,1.03864872]
[1772601038398,4.13621198,85.478,85.444,1.05305987]
[1772601038599,4.13621198,85.478,85.44,1.89488825]
[1772601040385,4.13621198,85.476,85.44,1.89488825]
[1772601040585,4.13621198,85.476,85.441,11.70398286]
[1772601040796,4.13621198,85.476,85.44,1.89488825]
[1772601041503,4.13621198,85.476,85.423,1.07400985]
[1772601041709,4.13621198,85.469,85.43,1.89488825]
[1772601043495,4.13621198,85.467,85.43,1.89488825]
[1772601044906,4.13621198,85.467,85.43,13.60033968]
[1772601046665,4.13621198,85.465,85.43,13.59950412]
[1772601046796,4.13621198,85.465,85.43,1.89405269]
[1772601047516,4.13621198,85.465,85.431,1.0946908]
[1772601047804,4.13621198,85.465,85.43,1.89405269]
[1772601048211,4.15426603,85.458,85.43,1.89405269]
[1772601048814,4.15426603,85.458,85.424,11.70618347]
[1772601049014,4.15426603,85.458,85.43,1.89405269]
[1772601050698,4.15426603,85.456,85.42,1.89405269]
[1772601051102,4.15426603,85.456,85.421,11.70672317]
[1772601052705,4.15426603,85.456,85.42,1.89405269]
[1772601052706,4.15426603,85.454,85.42,1.89405269]
[1772601053014,4.15426603,85.449,85.41,1.89405269]
[1772601053909,4.15426603,85.439,85.4,1.89405269]
[1772601054211,1.89405269,85.42,85.381,1.12026552]
[1772601054405,4.15426603,85.419,85.381,1.12026552]
[1772601054597,11.70713432,85.418,85.38,1.89405269]
[1772601054814,4.15426603,85.409,85.37,1.89405269]
[1772601055515,4.15426603,85.409,85.355,29.28923949]
[1772601055516,4.15426603,85.409,85.39,1.89405269]
[1772601059420,4.15426603,85.409,85.39,13.6049571]
[1772601059610,4.15426603,85.409,85.39,1.89405269]
[1772601060319,4.15426603,85.424,85.401,1.1381402]
[1772601060522,4.15426603,85.424,85.4,1.89405269]
[1772601061004,4.15426603,85.424,85.41,1.89405269]
[1772601061316,4.15426603,85.433,85.41,3.03504595]
[1772601061518,4.15426603,85.433,85.42,1.89405269]
[1772601061705,4.15426603,85.433,85.41,1.14099326]
[1772601062026,4.15426603,85.433,85.42,1.89405269]
[1772601062429,14.9,85.43,85.42,1.89405269]
[1772601062630,4.15426603,85.441,85.42,1.89405269]
[1772601062806,4.15426603,85.441,85.43,1.89405269]
[1772601063538,4.15426603,85.441,85.42,1.89405269]
[1772601064036,4.15426603,85.441,85.32,46.88212632]
[1772601064037,4.15426603,85.439,85.4,1.89405269]
[1772601064214,4.15426603,85.439,85.41,1.89405269]
[1772601067402,4.15426603,85.437,85.41,1.89405269]
[1772601070310,4.15426603,85.435,85.41,1.89405269]
[1772601072214,11.70466782,85.436,85.42,1.89405269]
[1772601072413,1.42052097,85.44,85.42,1.89405269]
[1772601072621,5.574787,85.44,85.42,1.89405269]
[1772601072827,11.70466782,85.436,85.42,1.89405269]
[1772601074238,4.15426603,85.435,85.41,1.89405269]
[1772601074735,29.25779101,85.448,85.42,1.89405269]
[1772601074736,15.85849557,85.44,85.42,1.89405269]
[1772601074931,4.15426603,85.439,85.42,1.89405269]
[1772601075846,11.70439382,85.438,85.42,1.89405269]
[1772601076218,4.15426603,85.437,85.411,1.18002324]
[1772601076618,2.65426603,85.437,85.411,1.18002324]
[1772601078223,29.25419208,85.458,85.431,2.69037163]
[1772601078614,4.08347242,85.457,85.44,1.89405269]
[1772601079018,4.08347242,85.457,85.431,2.69037163]
[1772601079221,4.08347242,85.457,85.43,1.89405269]
[1772601080941,4.14070409,85.449,85.42,1.89405269]
[1772601081442,4.14070409,85.449,85.403,2.7037735]
[1772601081619,4.14070409,85.449,85.341,102.9]
[1772601081620,4.14070409,85.439,85.4,1.89405269]
[1772601082532,4.14070409,85.439,85.41,1.89405269]
[1772601082922,4.14070409,85.437,85.4,4.60108228]
[1772601083339,4.14070409,85.437,85.402,2.71023063]
[1772601084154,4.14070409,85.429,85.402,2.71023063]
[1772601085441,11.70576391,85.428,85.41,1.89405269]
[1772601086040,15.846468,85.428,85.41,1.89405269]
[1772601086240,4.14070409,85.427,85.41,1.89405269]
[1772601086621,4.2,85.43,85.411,11.7080938]
[1772601086821,4.14070409,85.442,85.42,1.89405269]
[1772601087023,4.14070409,85.442,85.43,1.89405269]
[1772601087425,4.14070409,85.442,85.42,1.89405269]
[1772601087940,15.16670843,85.48,85.412,2.72576506]
[1772601087941,4.14070409,85.44,85.412,2.72576506]
[1772601088123,4.14070409,85.44,85.41,1.89405269]
[1772601088541,4.14070409,85.44,85.401,2.72576506]
[1772601089332,4.14070409,85.439,85.401,2.72576506]
[1772601089645,4.14070409,85.439,85.41,1.89405269]
[1772601089843,11.70439382,85.438,85.41,1.89405269]
[1772601090147,4.14070409,85.452,85.42,4.62574522]
[1772601090825,4.14070409,85.452,85.42,1.89405269]
[1772601091744,4.14070409,85.449,85.401,14.4440609]
[1772601091942,4.14070409,85.437,85.401,14.4440609]
[1772601092324,4.14070409,85.437,85.4,1.89405269]
[1772601092527,4.14070409,85.429,85.39,1.89405269]
[1772601093051,4.14070409,85.429,85.391,11.71083603]
[1772601093751,4.14070409,85.429,85.39,1.89405269]
[1772601093948,4.14070409,85.427,85.381,14.45247004]
[1772601094252,4.14070409,85.427,85.382,2.74320118]
[1772601094561,4.14070409,85.419,85.382,2.74320118]
[1772601094856,4.14070409,85.419,85.39,1.89405269]
[1772601096679,4.14070409,85.417,85.39,1.89405269]
[1772601099355,29.26440979,85.428,85.39,1.89405269]
[1772601099356,4.14070409,85.415,85.39,1.89405269]
[1772601099650,19.04070409,85.41,85.39,1.89405269]
[1772601100152,4.14070409,85.41,85.39,1.89405269]
[1772601101645,11.70836797,85.409,85.39,1.89405269]
[1772601101848,4.14070409,85.408,85.37,4.65597107]
[1772601102034,4.14070409,85.408,85.38,4.65666207]
[1772601103242,4.14070409,85.408,85.39,1.89405269]
[1772601104856,4.14070409,85.415,85.391,2.7640136]
[1772601105166,4.14070409,85.415,85.39,1.89405269]
[1772601105167,4.14070409,85.428,85.4,1.89405269]
[1772601105856,4.14070409,85.428,85.39,11.71085962]
[1772601105857,4.14070409,85.428,85.41,1.89405269]
[1772601106060,4.14070409,85.434,85.411,2.76532181]
[1772601106242,4.14070409,85.434,85.42,1.89405269]
[1772601106443,4.14070409,85.434,85.411,2.76532181]
[1772601106848,4.14070409,85.434,85.42,1.89487978]
[1772601107160,11.70507883,85.433,85.411,2.76532181]
[1772601107456,11.70507883,85.433,85.412,2.76596551]
[1772601107641,11.70507883,85.433,85.42,1.89487978]
[1772601108756,4.35293427,85.442,85.421,2.76717644]
[1772601109059,11.70398286,85.441,85.421,2.76717644]
[1772601109244,4.35293427,85.44,85.41,1.89487978]
[1772601109439,4.2,85.44,85.397,2.76779462]
[1772601109643,4.35293427,85.439,85.41,1.89487978]
[1772601111657,4.35293427,85.437,85.41,1.89487978]